fUSD/lending_fUSD_20260630
["ID","MTS","AMOUNT","RATE_DAILY","PERIOD"]
[426752557,1782779463000,-983.025102,0.00036018,30]
[426752555,1782779463000,-1337.393407,0.00036018,30]
[426752550,1782779463000,-7464.886624,0.00036018,30]
[426752553,1782779463000,-277.219059,0.00036018,30]
[426752552,1782779463000,-1976.712986,0.00036018,30]
[426752569,1782779463000,-306.24419,0.00036018,30]
[426752559,1782779463000,-277.219059,0.00036018,30]
[426752570,1782779463000,-4141.455722,0.00036018,30]
[426752558,1782779463000,-1976.712986,0.00036018,30]
[426752560,1782779463000,-1337.393407,0.00036018,30]
[426752564,1782779463000,-151.0,0.00036018,30]
[426752562,1782779463000,-151.0,0.00036018,30]
[426752545,1782779463000,-7464.886624,0.00036018,30]
[426752563,1782779463000,-983.025102,0.00036018,30]
[426752565,1782779463000,-5271.588622,0.00036018,30]
[426752567,1782779463000,-10850.85967,0.00036018,30]
[426752566,1782779463000,-983.025102,0.00036018,30]
[426752568,1782779463000,-151.0,0.00036018,30]
[426752576,1782779463000,-5271.588622,0.00036018,30]
[426752571,1782779463000,-10850.85967,0.00036018,30]
[426752575,1782779463000,-4141.455722,0.00036018,30]
[426752573,1782779463000,-306.24419,0.00036018,30]
[426752579,1782779463000,-10749.118255,0.00036018,30]
[426752572,1782779463000,-5271.588622,0.00036018,30]
[426752578,1782779463000,-151.0,0.00036018,30]
[426752577,1782779463000,-10850.85967,0.00036018,30]
[426752517,1782779463000,-151.0,0.00036018,30]
[426752561,1782779463000,-5271.588622,0.00036018,30]
[426752556,1782779463000,-7464.886624,0.00036018,30]
[426752580,1782779463000,-306.24419,0.00036018,30]
[426752549,1782779463000,-1337.393407,0.00036018,30]
[426752548,1782779463000,-553.612309,0.00036018,30]
[426752519,1782779463000,-602.75593,0.00036018,30]
[426752530,1782779463000,-1669.258476,0.00036018,28]
[426752527,1782779463000,-2551.007262,0.00036018,30]
[426752526,1782779463000,-151.0,0.00036018,30]
[426752522,1782779463000,-151.0,0.00036018,30]
[426752528,1782779463000,-227.750337,0.00036018,30]
[426752529,1782779463000,-602.75593,0.00036018,30]
[426752525,1782779463000,-1669.258476,0.00036018,28]
[426752523,1782779463000,-227.750337,0.00036018,30]
[426752524,1782779463000,-602.75593,0.00036018,30]
[426752532,1782779463000,-2551.007262,0.00036018,30]
[426752531,1782779463000,-227.750337,0.00036018,30]
[426752538,1782779463000,-151.0,0.00036018,30]
[426752520,1782779463000,-1669.258476,0.00036018,28]
[426752543,1782779463000,-553.612309,0.00036018,30]
[426752551,1782779463000,-983.025102,0.00036018,30]
[426752547,1782779463000,-277.219059,0.00036018,30]
[426752546,1782779463000,-1976.712986,0.00036018,30]
[426752544,1782779463000,-1337.393407,0.00036018,30]
[426752537,1782779463000,-2551.007262,0.00036018,30]
[426752540,1782779463000,-7464.886624,0.00036018,30]
[426752539,1782779463000,-553.612309,0.00036018,30]
[426752534,1782779463000,-602.75593,0.00036018,30]
[426752536,1782779463000,-151.0,0.00036018,30]
[426752533,1782779463000,-151.0,0.00036018,30]
[426752535,1782779463000,-2551.007262,0.00036018,30]
[426752542,1782779463000,-277.219059,0.00036018,30]
[426752541,1782779463000,-1976.712986,0.00036018,30]
[426752634,1782779464000,-526.973479,0.00036018,30]
[426752614,1782779464000,-151.0,0.00036018,30]
[426752620,1782779464000,-166.414994,0.00036018,30]
[426752619,1782779464000,-1950.878986,0.00036018,30]
[426752611,1782779464000,-151.0,0.00036018,30]
[426752612,1782779464000,-1950.878986,0.00036018,30]
[426752613,1782779464000,-166.414994,0.00036018,30]
[426752617,1782779464000,-151.0,0.00036018,30]
[426752616,1782779464000,-1950.878986,0.00036018,30]
[426752615,1782779464000,-166.414994,0.00036018,30]
[426752609,1782779464000,-151.0,0.00036018,30]
[426752627,1782779464000,-368.199655,0.00036018,7]
[426752626,1782779464000,-311.954531,0.00036018,30]
[426752622,1782779464000,-1950.878986,0.00036018,30]
[426752628,1782779464000,-585.374962,0.00036018,30]
[426752630,1782779464000,-368.199655,0.00036018,7]
[426752624,1782779464000,-151.0,0.00036018,30]
[426752629,1782779464000,-311.954531,0.00036018,30]
[426752631,1782779464000,-585.374962,0.00036018,30]
[426752625,1782779464000,-585.374962,0.00036018,30]
[426752632,1782779464000,-151.0,0.00036018,30]
[426752646,1782779464000,-526.973479,0.00036018,30]
[426752643,1782779464000,-526.973479,0.00036018,30]
[426752638,1782779464000,-311.954531,0.00036018,30]
[426752636,1782779464000,-585.374962,0.00036018,30]
[426752618,1782779464000,-151.0,0.00036018,30]
[426752623,1782779464000,-151.0,0.00036018,30]
[426752610,1782779464000,-151.0,0.00036018,30]
[426752589,1782779464000,-151.0,0.00036018,30]
[426752602,1782779464000,-151.0,0.00036018,30]
[426752637,1782779464000,-151.0,0.00036018,30]
[426752581,1782779464000,-4141.455722,0.00036018,30]
[426752583,1782779464000,-10850.85967,0.00036018,30]
[426752582,1782779464000,-9739.217006,0.00036018,30]
[426752585,1782779464000,-10749.118255,0.00036018,30]
[426752593,1782779464000,-9739.217006,0.00036018,30]
[426752586,1782779464000,-4141.455722,0.00036018,30]
[426752595,1782779464000,-151.0,0.00036018,30]
[426752596,1782779464000,-151.0,0.00036018,30]
[426752587,1782779464000,-306.24419,0.00036018,30]
[426752584,1782779464000,-151.0,0.00036018,30]
[426752594,1782779464000,-288.020836,0.00036018,30]
[426752592,1782779464000,-10749.118255,0.00036018,30]
[426752588,1782779464000,-9739.217006,0.00036018,30]
[426752591,1782779464000,-151.0,0.00036018,30]
[426752590,1782779464000,-151.0,0.00036018,30]
[426752598,1782779464000,-9739.217006,0.00036018,30]
[426752597,1782779464000,-10749.118255,0.00036018,30]
[426752608,1782779464000,-166.414994,0.00036018,30]
[426752604,1782779464000,-288.020836,0.00036018,30]
[426752603,1782779464000,-151.0,0.00036018,30]
[426752599,1782779464000,-288.020836,0.00036018,30]
[426752601,1782779464000,-156.8103,0.00036018,30]
[426752600,1782779464000,-151.0,0.00036018,30]
[426752607,1782779464000,-288.020836,0.00036018,30]
[426752606,1782779464000,-151.0,0.00036018,30]
[426752605,1782779464000,-214.695438,0.00036018,30]
[426752621,1782779464000,-151.0,0.00036018,30]
[426752641,1782779464000,-4128.547601,0.00036018,7]
[426752633,1782779464000,-311.954531,0.00036018,30]
[426752640,1782779464000,-526.973479,0.00036018,30]
[426752675,1782779464000,-3249.964024,0.00036018,30]
[426752673,1782779464000,-151.0,0.00036018,30]
[426752676,1782779464000,-2760.94787,0.00036018,30]
[426752683,1782779464000,-2760.94787,0.00036018,30]
[426752680,1782779464000,-311.966221,0.00036018,30]
[426752679,1782779464000,-1722.848997,0.00036018,30]
[426752685,1782779464000,-151.0,0.00036018,30]
[426752684,1782779464000,-151.0,0.00036018,30]
[426752681,1782779464000,-901.772022,0.00036018,30]
[426752682,1782779464000,-178.198597,0.00036018,30]
[426752686,1782779464000,-311.966221,0.00036018,30]
[426752688,1782779464000,-901.772022,0.00036018,30]
[426752699,1782779464000,-365.414,0.00036018,30]
[426752698,1782779464000,-151.0,0.00036018,30]
[426752687,1782779464000,-1722.848997,0.00036018,30]
[426752690,1782779464000,-151.0,0.00036018,30]
[426752689,1782779464000,-2760.94787,0.00036018,30]
[426752694,1782779464000,-151.0,0.00036018,30]
[426752696,1782779464000,-311.966221,0.00036018,30]
[426752691,1782779464000,-151.0,0.00036018,30]
[426752695,1782779464000,-1722.848997,0.00036018,30]
[426752692,1782779464000,-1722.848997,0.00036018,30]
[426752697,1782779464000,-151.0,0.00036018,30]
[426752693,1782779464000,-311.966221,0.00036018,30]
[426752702,1782779464000,-365.414,0.00036018,30]
[426752700,1782779464000,-151.0,0.00036018,30]
[426752701,1782779464000,-151.0,0.00036018,30]
[426752672,1782779464000,-901.772022,0.00036018,30]
[426752674,1782779464000,-2302.617804,0.00036018,30]
[426752677,1782779464000,-151.0,0.00036018,30]
[426752669,1782779464000,-2760.94787,0.00036018,30]
[426752639,1782779464000,-368.199655,0.00036018,7]
[426752668,1782779464000,-2302.617804,0.00036018,30]
[426752645,1782779464000,-151.0,0.00036018,30]
[426752644,1782779464000,-4128.547601,0.00036018,7]
[426752642,1782779464000,-151.0,0.00036018,30]
[426752650,1782779464000,-4128.547601,0.00036018,7]
[426752649,1782779464000,-242.942116,0.00036018,30]
[426752647,1782779464000,-4128.547601,0.00036018,7]
[426752658,1782779464000,-3249.964024,0.00036018,30]
[426752653,1782779464000,-295.513275,0.00036018,30]
[426752635,1782779464000,-368.199655,0.00036018,7]
[426752651,1782779464000,-242.942116,0.00036018,30]
[426752659,1782779464000,-242.942116,0.00036018,30]
[426752654,1782779464000,-242.942116,0.00036018,30]
[426752655,1782779464000,-295.513275,0.00036018,30]
[426752656,1782779464000,-2302.617804,0.00036018,30]
[426752665,1782779464000,-151.0,0.00036018,30]
[426752652,1782779464000,-616.283177,0.00036018,20]
[426752664,1782779464000,-3249.964024,0.00036018,30]
[426752666,1782779464000,-901.772022,0.00036018,30]
[426752662,1782779464000,-295.513275,0.00036018,30]
[426752667,1782779464000,-295.513275,0.00036018,30]
[426752660,1782779464000,-151.0,0.00036018,30]
[426752663,1782779464000,-2302.617804,0.00036018,30]
[426752670,1782779464000,-3249.964024,0.00036018,30]
[426752671,1782779464000,-151.0,0.00036018,30]
[426752657,1782779464000,-616.283177,0.00036018,20]
[426752648,1782779464000,-616.283177,0.00036018,20]
[426752661,1782779464000,-616.283177,0.00036018,20]
[426752738,1782779465000,-2795.7,0.00036018,30]
[426752745,1782779465000,-404.565709,0.00036018,30]
[426752755,1782779465000,-151.0,0.00036018,30]
[426752743,1782779465000,-4274.489557,0.00036018,30]
[426752739,1782779465000,-151.0,0.00036018,30]
[426752732,1782779465000,-1211.988348,0.00036018,30]
[426752733,1782779465000,-883.146791,0.00036018,30]
[426752740,1782779465000,-4274.489557,0.00036018,30]
[426752741,1782779465000,-151.0,0.00036018,30]
[426752734,1782779465000,-151.0,0.00036018,30]
[426752751,1782779465000,-151.0,0.00036018,30]
[426752736,1782779465000,-1211.988348,0.00036018,30]
[426752747,1782779465000,-1780.914314,0.00036018,30]
[426752759,1782779465000,-266.248196,0.00036018,30]
[426752754,1782779465000,-404.565709,0.00036018,30]
[426752746,1782779465000,-151.0,0.00036018,30]
[426752749,1782779465000,-151.0,0.00036018,30]
[426752752,1782779465000,-1780.914314,0.00036018,30]
[426752744,1782779465000,-151.0,0.00036018,30]
[426752750,1782779465000,-404.565709,0.00036018,30]
[426752753,1782779465000,-266.248196,0.00036018,30]
[426752756,1782779465000,-218.150287,0.00036018,30]
[426752764,1782779465000,-266.248196,0.00036018,30]
[426752762,1782779465000,-151.0,0.00036018,30]
[426752761,1782779465000,-1780.914314,0.00036018,30]
[426752758,1782779465000,-290.399178,0.00036018,30]
[426752737,1782779465000,-4274.489557,0.00036018,30]
[426752748,1782779465000,-4274.489557,0.00036018,30]
[426752735,1782779465000,-2795.7,0.00036018,30]
[426752703,1782779465000,-151.0,0.00036018,30]
[426752731,1782779465000,-2795.7,0.00036018,30]
[426752763,1782779465000,-9316.764672,0.00036018,30]
[426752705,1782779465000,-365.414,0.00036018,30]
[426752704,1782779465000,-151.0,0.00036018,30]
[426752706,1782779465000,-151.0,0.00036018,30]
[426752709,1782779465000,-858.216946,0.00036018,30]
[426752707,1782779465000,-365.414,0.00036018,30]
[426752710,1782779465000,-173.826926,0.00036018,30]
[426752711,1782779465000,-858.216946,0.00036018,30]
[426752708,1782779465000,-151.0,0.00036018,30]
[426752713,1782779465000,-173.826926,0.00036018,30]
[426752717,1782779465000,-173.826926,0.00036018,30]
[426752712,1782779465000,-192.05,0.00036018,30]
[426752714,1782779465000,-858.216946,0.00036018,30]
[426752742,1782779465000,-404.565709,0.00036018,30]
[426752715,1782779465000,-311.919381,0.00036018,30]
[426752716,1782779465000,-192.05,0.00036018,30]
[426752720,1782779465000,-192.05,0.00036018,30]
[426752722,1782779465000,-192.05,0.00036018,30]
[426752721,1782779465000,-173.826926,0.00036018,30]
[426752730,1782779465000,-883.146791,0.00036018,30]
[426752719,1782779465000,-311.919381,0.00036018,30]
[426752723,1782779465000,-311.919381,0.00036018,30]
[426752725,1782779465000,-883.146791,0.00036018,30]
[426752724,1782779465000,-311.919381,0.00036018,30]
[426752726,1782779465000,-1211.988348,0.00036018,30]
[426752729,1782779465000,-1211.988348,0.00036018,30]
[426752728,1782779465000,-2795.7,0.00036018,30]
[426752727,1782779465000,-883.146791,0.00036018,30]
[426752718,1782779465000,-858.216946,0.00036018,30]
[426752765,1782779465000,-1020.147463,0.00036018,30]
[426752815,1782779465000,-151.0,0.00036018,30]
[426752757,1782779465000,-1780.914314,0.00036018,30]
[426752796,1782779465000,-630.160722,0.00036018,7]
[426752798,1782779465000,-151.0,0.00036018,30]
[426752804,1782779465000,-202.743987,0.00036018,30]
[426752799,1782779465000,-202.743987,0.00036018,30]
[426752805,1782779465000,-3701.167344,0.00036018,30]
[426752800,1782779465000,-3701.167344,0.00036018,30]
[426752806,1782779465000,-3701.167344,0.00036018,30]
[426752801,1782779465000,-151.0,0.00036018,30]
[426752802,1782779465000,-202.743987,0.00036018,30]
[426752803,1782779465000,-3701.167344,0.00036018,30]
[426752809,1782779465000,-4623.96722,0.00036018,30]
[426752811,1782779465000,-151.0,0.00036018,30]
[426752810,1782779465000,-151.0,0.00036018,30]
[426752807,1782779465000,-151.0,0.00036018,30]
[426752812,1782779465000,-4623.96722,0.00036018,30]
[426752818,1782779465000,-213.943681,0.00036018,30]
[426752819,1782779465000,-151.0,0.00036018,30]
[426752816,1782779465000,-151.0,0.00036018,30]
[426752817,1782779465000,-4623.96722,0.00036018,30]
[426752813,1782779465000,-151.0,0.00036018,30]
[426752814,1782779465000,-213.943681,0.00036018,30]
[426752822,1782779465000,-213.943681,0.00036018,30]
[426752825,1782779465000,-1293.298744,0.00036018,30]
[426752821,1782779465000,-4623.96722,0.00036018,30]
[426752824,1782779465000,-213.943681,0.00036018,30]
[426752823,1782779465000,-1293.298744,0.00036018,30]
[426752827,1782779465000,-1071.291364,0.00036018,30]
[426752826,1782779465000,-1312.997201,0.00036018,30]
[426752820,1782779465000,-151.0,0.00036018,30]
[426752797,1782779465000,-202.743987,0.00036018,30]
[426752766,1782779465000,-9316.764672,0.00036018,30]
[426752790,1782779465000,-879.123218,0.00036018,7]
[426752769,1782779465000,-1020.147463,0.00036018,30]
[426752768,1782779465000,-229.43723,0.00036018,30]
[426752767,1782779465000,-266.248196,0.00036018,30]
[426752771,1782779465000,-912.039531,0.00036018,30]
[426752776,1782779465000,-1020.147463,0.00036018,30]
[426752777,1782779465000,-229.43723,0.00036018,30]
[426752778,1782779465000,-912.039531,0.00036018,30]
[426752808,1782779465000,-151.0,0.00036018,30]
[426752779,1782779465000,-229.43723,0.00036018,30]
[426752782,1782779465000,-151.0,0.00036018,30]
[426752770,1782779465000,-9316.764672,0.00036018,30]
[426752781,1782779465000,-912.039531,0.00036018,30]
[426752783,1782779465000,-173.305632,0.00036018,30]
[426752773,1782779465000,-229.43723,0.00036018,30]
[426752780,1782779465000,-879.123218,0.00036018,7]
[426752775,1782779465000,-912.039531,0.00036018,30]
[426752772,1782779465000,-1020.147463,0.00036018,30]
[426752792,1782779465000,-151.0,0.00036018,30]
[426752789,1782779465000,-151.0,0.00036018,30]
[426752791,1782779465000,-151.0,0.00036018,30]
[426752784,1782779465000,-879.123218,0.00036018,7]
[426752787,1782779465000,-270.827588,0.00036018,30]
[426752788,1782779465000,-151.0,0.00036018,30]
[426752794,1782779465000,-630.160722,0.00036018,7]
[426752795,1782779465000,-630.160722,0.00036018,7]
[426752793,1782779465000,-630.160722,0.00036018,7]
[426752785,1782779465000,-151.0,0.00036018,30]
[426752774,1782779465000,-9316.764672,0.00036018,30]
[426752786,1782779465000,-879.123218,0.00036018,7]
[426752867,1782779466000,-200.055808,0.00036018,30]
[426752871,1782779466000,-158.593475,0.00036018,30]
[426752872,1782779466000,-151.0,0.00036018,30]
[426752868,1782779466000,-374.877929,0.00036018,30]
[426752869,1782779466000,-1558.167375,0.00036018,30]
[426752857,1782779466000,-2208.721779,0.00036018,30]
[426752864,1782779466000,-374.877929,0.00036018,30]
[426752863,1782779466000,-2208.721779,0.00036018,30]
[426752862,1782779466000,-374.877929,0.00036018,30]
[426752866,1782779466000,-1558.167375,0.00036018,30]
[426752854,1782779466000,-828.426999,0.00036018,30]
[426752865,1782779466000,-374.877929,0.00036018,30]
[426752870,1782779466000,-1705.19914,0.00036018,30]
[426752892,1782779466000,-151.0,0.00036018,30]
[426752874,1782779466000,-200.055808,0.00036018,30]
[426752882,1782779466000,-1705.19914,0.00036018,30]
[426752880,1782779466000,-158.593475,0.00036018,30]
[426752877,1782779466000,-151.0,0.00036018,30]
[426752878,1782779466000,-200.055808,0.00036018,30]
[426752879,1782779466000,-1558.167375,0.00036018,30]
[426752873,1782779466000,-151.0,0.00036018,15]
[426752875,1782779466000,-1558.167375,0.00036018,30]
[426752876,1782779466000,-1705.19914,0.00036018,30]
[426752884,1782779466000,-5839.153419,0.00036018,30]
[426752895,1782779466000,-151.0,0.00036018,30]
[426752894,1782779466000,-151.0,0.00036018,30]
[426752889,1782779466000,-158.593475,0.00036018,30]
[426752858,1782779466000,-4252.868314,0.00036018,30]
[426752881,1782779466000,-5839.153419,0.00036018,30]
[426752856,1782779466000,-4252.868314,0.00036018,30]
[426752838,1782779466000,-1312.997201,0.00036018,30]
[426752855,1782779466000,-4252.868314,0.00036018,30]
[426752888,1782779466000,-5839.153419,0.00036018,30]
[426752834,1782779466000,-1312.997201,0.00036018,30]
[426752832,1782779466000,-1293.298744,0.00036018,30]
[426752833,1782779466000,-5376.721794,0.00036018,30]
[426752829,1782779466000,-1312.997201,0.00036018,30]
[426752828,1782779466000,-1293.298744,0.00036018,30]
[426752831,1782779466000,-1071.291364,0.00036018,30]
[426752830,1782779466000,-5376.721794,0.00036018,30]
[426752835,1782779466000,-312.224004,0.00036018,30]
[426752844,1782779466000,-151.0,0.00036018,30]
[426752847,1782779466000,-151.0,0.00036018,30]
[426752846,1782779466000,-156.530422,0.00036018,30]
[426752837,1782779466000,-5376.721794,0.00036018,30]
[426752853,1782779466000,-828.426999,0.00036018,30]
[426752845,1782779466000,-156.530422,0.00036018,30]
[426752840,1782779466000,-312.224004,0.00036018,30]
[426752836,1782779466000,-1071.291364,0.00036018,30]
[426752839,1782779466000,-1071.291364,0.00036018,30]
[426752841,1782779466000,-5376.721794,0.00036018,30]
[426752843,1782779466000,-312.224004,0.00036018,30]
[426752849,1782779466000,-828.426999,0.00036018,30]
[426752859,1782779466000,-2208.721779,0.00036018,30]
[426752860,1782779466000,-4252.868314,0.00036018,30]
[426752861,1782779466000,-2208.721779,0.00036018,30]
[426752850,1782779466000,-268.369602,0.00036018,30]
[426752848,1782779466000,-156.530422,0.00036018,30]
[426752851,1782779466000,-156.530422,0.00036018,30]
[426752852,1782779466000,-828.426999,0.00036018,30]
[426752842,1782779466000,-312.224004,0.00036018,30]
[426752890,1782779466000,-1502.312856,0.00036018,30]
[426752906,1782779466000,-17160.912325,0.00036018,30]
[426752886,1782779466000,-1705.19914,0.00036018,30]
[426752926,1782779466000,-1799.170193,0.00036018,30]
[426752929,1782779466000,-482.147791,0.00036018,30]
[426752928,1782779466000,-310.2,0.00036018,30]
[426752924,1782779466000,-1105.266591,0.00036018,30]
[426752934,1782779466000,-310.2,0.00036018,30]
[426752930,1782779466000,-1649.36794,0.00036018,7]
[426752925,1782779466000,-1799.170193,0.00036018,30]
[426752935,1782779466000,-1500.045949,0.00036018,7]
[426752931,1782779466000,-310.2,0.00036018,30]
[426752933,1782779466000,-482.147791,0.00036018,30]
[426752932,1782779466000,-1649.36794,0.00036018,7]
[426752941,1782779466000,-1500.045949,0.00036018,7]
[426752940,1782779466000,-482.147791,0.00036018,30]
[426752936,1782779466000,-1649.36794,0.00036018,7]
[426752887,1782779466000,-151.0,0.00036018,30]
[426752937,1782779466000,-482.147791,0.00036018,30]
[426752939,1782779466000,-1649.36794,0.00036018,7]
[426752942,1782779466000,-1500.045949,0.00036018,7]
[426752938,1782779466000,-1500.045949,0.00036018,7]
[426752945,1782779466000,-160.0,0.00036025,11]
[426752943,1782779466000,-151.0,0.00036018,30]
[426752946,1782779466000,-691.0,0.0003604,11]
[426752944,1782779466000,-151.0,0.00036018,30]
[426752948,1782779466000,-160.0,0.00036066,11]
[426752950,1782779466000,-2336.0,0.00036066,11]
[426752951,1782779466000,-218.4373089,0.0003607,5]
[426752949,1782779466000,-160.0,0.00036066,11]
[426752953,1782779466000,-2728.97,0.000361,120]
[426752952,1782779466000,-1254.25,0.000361,120]
[426752927,1782779466000,-310.2,0.00036018,30]
[426752923,1782779466000,-1799.170193,0.00036018,30]
[426752947,1782779466000,-160.0,0.0003604,11]
[426752918,1782779466000,-206.275724,0.00036018,30]
[426752883,1782779466000,-200.055808,0.00036018,30]
[426752917,1782779466000,-1105.266591,0.00036018,30]
[426752885,1782779466000,-158.593475,0.00036018,30]
[426752891,1782779466000,-492.080444,0.00036018,30]
[426752893,1782779466000,-5839.153419,0.00036018,30]
[426752896,1782779466000,-492.080444,0.00036018,30]
[426752901,1782779466000,-151.0,0.00036018,30]
[426752898,1782779466000,-1502.312856,0.00036018,30]
[426752900,1782779466000,-492.080444,0.00036018,30]
[426752899,1782779466000,-277.297046,0.00036018,30]
[426752908,1782779466000,-17160.912325,0.00036018,30]
[426752902,1782779466000,-1502.312856,0.00036018,30]
[426752904,1782779466000,-492.080444,0.00036018,30]
[426752905,1782779466000,-1502.312856,0.00036018,30]
[426752897,1782779466000,-151.0,0.00036018,30]
[426752907,1782779466000,-155.180973,0.00036018,30]
[426752919,1782779466000,-1105.266591,0.00036018,30]
[426752915,1782779466000,-206.275724,0.00036018,30]
[426752903,1782779466000,-17160.912325,0.00036018,30]
[426752912,1782779466000,-151.0,0.00036018,30]
[426752914,1782779466000,-155.180973,0.00036018,30]
[426752911,1782779466000,-206.275724,0.00036018,30]
[426752916,1782779466000,-155.180973,0.00036018,30]
[426752913,1782779466000,-17160.912325,0.00036018,30]
[426752920,1782779466000,-1799.170193,0.00036018,30]
[426752909,1782779466000,-151.0,0.00036018,30]
[426752921,1782779466000,-206.275724,0.00036018,30]
[426752910,1782779466000,-155.180973,0.00036018,30]
[426752922,1782779466000,-1105.266591,0.00036018,30]
[426752973,1782779467000,-200.0,0.000361,120]
[426752976,1782779467000,-2849.03,0.000361,120]
[426752977,1782779467000,-6087.0,0.00036112,2]
[426752978,1782779467000,-3565.0,0.00036112,2]
[426752974,1782779467000,-1042.97093358,0.000361,120]
[426752983,1782779467000,-180.2025,0.00036129,13]
[426752979,1782779467000,-160.0,0.00036115,11]
[426752988,1782779467000,-2336.0,0.0003617,11]
[426752981,1782779467000,-156.738251,0.00036116,120]
[426752982,1782779467000,-1798.41,0.00036116,2]
[426752985,1782779467000,-2336.0,0.00036144,11]
[426752987,1782779467000,-154.46935744,0.00036169,2]
[426752975,1782779467000,-1237.66,0.000361,120]
[426752986,1782779467000,-160.0,0.00036157,11]
[426752980,1782779467000,-175.290643,0.00036116,120]
[426752970,1782779467000,-195.85021396,0.000361,120]
[426752954,1782779467000,-428.63,0.000361,120]
[426752971,1782779467000,-182.03662355,0.000361,120]
[426752984,1782779467000,-180.2,0.00036129,13]
[426752956,1782779467000,-2915.11,0.000361,120]
[426752955,1782779467000,-2893.73,0.000361,120]
[426752959,1782779467000,-242.42372909,0.000361,120]
[426752960,1782779467000,-185.5949233,0.000361,120]
[426752958,1782779467000,-189.30581554,0.000361,120]
[426752962,1782779467000,-204.13536785,0.000361,120]
[426752961,1782779467000,-206.11002998,0.000361,120]
[426752963,1782779467000,-184.85110104,0.000361,120]
[426752967,1782779467000,-171.744723,0.000361,120]
[426752965,1782779467000,-175.98510603,0.000361,120]
[426752964,1782779467000,-189.14422139,0.000361,120]
[426752966,1782779467000,-318.69808386,0.000361,120]
[426752969,1782779467000,-200.30438808,0.000361,120]
[426752968,1782779467000,-183.66054816,0.000361,120]
[426752972,1782779467000,-415.12383346,0.000361,120]
[426752989,1782779467000,-2739.88914127,0.0003618,30]
[426752957,1782779467000,-286.53888233,0.000361,120]
[426752990,1782779467000,-292.315,0.00036189,120]
[426753010,1782779467000,-73549.30820112,0.000364,7]
[426753013,1782779467000,-153944.32447489,0.000364,7]
[426753014,1782779467000,-9481.81097779,0.000364,7]
[426753017,1782779467000,-20797.65910178,0.000364,7]
[426753016,1782779467000,-20797.65910178,0.000364,7]
[426753012,1782779467000,-153944.32447489,0.000364,7]
[426753015,1782779467000,-9481.81097779,0.000364,7]
[426753019,1782779467000,-5199.41477544,0.000364,7]
[426753020,1782779467000,-5110.41159341,0.000364,7]
[426753021,1782779467000,-5110.41159341,0.000364,7]
[426753022,1782779467000,-2577.45659222,0.000364,7]
[426753024,1782779467000,-643.36414831,0.000364,7]
[426753023,1782779467000,-2577.45659222,0.000364,7]
[426753025,1782779467000,-643.36414831,0.000364,7]
[426752991,1782779467000,-320.0,0.00036191,10]
[426753011,1782779467000,-73549.30820112,0.000364,7]
[426753008,1782779467000,-143059.38177419,0.000364,2]
[426753018,1782779467000,-5199.41477544,0.000364,7]
[426753000,1782779467000,-275.52,0.0003634,114]
[426752994,1782779467000,-1858.05655181,0.0003625,7]
[426752992,1782779467000,-300.0,0.000362,5]
[426752995,1782779467000,-2500.0,0.000363,60]
[426752996,1782779467000,-200.0,0.00036313,2]
[426752997,1782779467000,-615.0,0.00036319,11]
[426753007,1782779467000,-151.0,0.00036397,14]
[426752999,1782779467000,-2336.0,0.00036331,11]
[426752993,1782779467000,-2336.0,0.00036214,11]
[426753006,1782779467000,-251.96,0.00036393,7]
[426753003,1782779467000,-4757.95,0.00036362,60]
[426753001,1782779467000,-607.06,0.0003635,2]
[426753002,1782779467000,-182.12,0.0003635,2]
[426753005,1782779467000,-505.0,0.00036392,21]